bitfinex/quotes_BTCUSD_20260308
["timestamp","ask_amount","ask_price","bid_price","bid_amount"]
[1772993370887,0.00148,66954.0,66943.0,0.00499042]
[1772993371306,5e-05,66960.0,66945.0,0.00499042]
[1772993371506,5e-05,66960.0,66946.0,0.00499042]
[1772993371828,0.00148,66959.0,66946.0,0.00499042]
[1772993372109,0.00148,66958.0,66946.0,0.00499042]
[1772993372532,5e-05,66960.0,66946.0,0.00499042]
[1772993372701,0.00148,66957.0,66946.0,0.00499042]
[1772993374195,0.0746759,66956.0,66946.0,0.07967641]
[1772993376338,0.07467813,66954.0,66944.0,0.07468706]
[1772993376610,0.00488212,66949.0,66931.0,0.0002]
[1772993376768,0.07467813,66954.0,66938.0,0.07489587]
[1772993376769,0.00148,66953.0,66938.0,0.07489587]
[1772993376967,0.00488212,66953.0,66938.0,0.07489587]
[1772993377172,0.00148,66952.0,66938.0,0.07489587]
[1772993377466,0.00636212,66952.0,66938.0,0.07489587]
[1772993377805,0.07467813,66954.0,66939.0,0.00499042]
[1772993377806,0.00148,66951.0,66939.0,0.00499042]
[1772993378006,0.00148,66950.0,66939.0,0.00499042]
[1772993378359,0.00148,66949.0,66941.0,0.00499042]
[1772993378599,0.00148,66948.0,66941.0,0.00499042]
[1772993378801,0.00148,66948.0,66940.0,0.07469375]
[1772993378802,0.00148,66947.0,66942.0,0.00499484]
[1772993380183,0.00148,66952.0,66943.0,0.00499484]
[1772993380713,0.00148,66952.0,66944.0,0.07968413]
[1772993380967,0.00148,66952.0,66944.0,0.07468929]
[1772993381241,0.00148,66951.0,66945.0,0.00499484]
[1772993381444,0.00022001,66954.0,66945.0,0.00499484]
[1772993381799,0.00148,66953.0,66945.0,0.00499484]
[1772993382308,0.00022001,66954.0,66945.0,0.00499484]
[1772993382648,0.00148,66953.0,66945.0,0.00499484]
[1772993383204,0.00148,66953.0,66946.0,0.07468706]
[1772993383764,0.00148,66953.0,66946.0,0.0796819]
[1772993385015,0.07489847,66954.0,66946.0,0.0796819]
[1772993385251,0.00148,66953.0,66946.0,0.0796819]
[1772993386009,0.00022001,66954.0,66946.0,0.0796819]
[1772993386259,0.00148,66953.0,66946.0,0.0796819]
[1772993386465,0.00148,66953.0,66946.0,0.07468706]
[1772993386686,0.00148,66953.0,66943.0,0.07469036]
[1772993386687,0.00458478,66952.0,66943.0,0.07469036]
[1772993386878,0.00458478,66951.0,66943.0,0.07469036]
[1772993387088,0.00458478,66951.0,66942.0,0.07469075]
[1772993387294,0.07468036,66952.0,66941.0,0.00499484]
[1772993388348,0.00148,66951.0,66941.0,0.00499484]
[1772993389554,0.00148,66951.0,66942.0,0.07489152]
[1772993390175,0.00148,66951.0,66942.0,0.07988636]
[1772993390402,0.00148,66950.0,66943.0,0.00499484]
[1772993391059,0.00148,66951.0,66943.0,0.00499484]
[1772993391466,0.07489858,66954.0,66943.0,0.00499484]
[1772993391669,0.00148,66953.0,66944.0,0.07968413]
[1772993391871,0.00148,66953.0,66944.0,0.07468929]
[1772993393904,0.07468036,66952.0,66942.0,0.0002]
[1772993394085,0.07468036,66952.0,66942.0,0.00519484]
[1772993395784,0.07615957,66953.0,66942.0,0.00519484]
[1772993395980,0.07615957,66953.0,66943.0,0.07968524]
[1772993397285,0.07615957,66953.0,66943.0,0.0746904]
[1772993397480,0.07615957,66953.0,66944.0,0.00499484]
[1772993398068,0.00148,66953.0,66945.0,0.07468817]
[1772993398479,0.07615928,66953.0,66945.0,0.07468817]
[1772993398720,0.00148,66953.0,66945.0,0.07468817]
[1772993400659,0.07615953,66953.0,66942.0,0.0002]
[1772993400834,0.07615953,66953.0,66913.0,0.35867062]
[1772993400835,0.08604811,66949.0,66938.0,0.07504551]
[1772993401017,0.00458478,66946.0,66938.0,0.07504551]
[1772993401218,0.00148,66945.0,66938.0,0.07504551]
[1772993402238,0.00458478,66942.0,66935.0,1e-08]
[1772993402441,0.08604811,66939.0,66935.0,1e-08]
[1772993402644,0.00458478,66937.0,66929.0,0.07470603]
[1772993402854,0.07469821,66936.0,66929.0,5.924e-05]
[1772993403369,0.07469736,66937.0,66929.0,5.924e-05]
[1772993403536,0.00148,66937.0,66930.0,0.00499484]
[1772993404852,0.00148,66937.0,66931.0,0.07470379]
[1772993405052,0.0746904,66943.0,66938.0,0.0002]
[1772993405305,0.00148,66942.0,66932.0,0.00499484]
[1772993405901,0.0746904,66943.0,66932.0,0.00499484]
[1772993406116,0.00148,66941.0,66932.0,0.00499484]
[1772993406311,0.00148,66940.0,66932.0,0.00499484]
[1772993406542,0.07468371,66949.0,66933.0,0.08573945]
[1772993406746,0.00148,66948.0,66936.0,0.00486902]
[1772993407227,0.07468594,66947.0,66937.0,0.0746971]
[1772993408298,0.07468371,66949.0,66939.0,0.08573945]
[1772993408619,0.00148,66947.0,66940.0,0.00486902]
[1772993408772,0.07468371,66949.0,66940.0,0.00486902]
[1772993408978,0.00148,66948.0,66940.0,0.00486902]
[1772993409620,0.07468594,66947.0,66940.0,0.07956171]
[1772993409847,0.07616547,66948.0,66940.0,0.07956171]
[1772993410996,0.07616547,66948.0,66940.0,0.07469269]
[1772993411192,0.07616547,66948.0,66941.0,0.0049166]
[1772993411628,0.07616547,66948.0,66941.0,0.07960876]
[1772993411824,0.00148,66948.0,66941.0,0.07469216]
[1772993412030,0.07468259,66950.0,66942.0,0.0049166]
[1772993412262,0.00148,66948.0,66942.0,0.0049166]
[1772993413234,0.00148,66948.0,66941.0,0.07469216]
[1772993413677,0.07468307,66950.0,66941.0,0.07469216]
[1772993413985,0.00148,66948.0,66941.0,0.07960876]
[1772993414181,0.00148,66948.0,66940.0,0.07489268]
[1772993414384,0.00485475,66947.0,66940.0,0.07489268]
[1772993414791,0.00148,66948.0,66940.0,0.07455919]
[1772993415285,0.07468307,66950.0,66940.0,0.07455919]
[1772993415492,0.00148,66947.0,66940.0,0.07455919]
[1772993416767,0.00148,66947.0,66940.0,0.0002]
[1772993420540,0.076166,66947.0,66940.0,0.0002]
[1772993420897,0.00148,66947.0,66940.0,0.0002]
[1772993421679,0.07616597,66947.0,66940.0,0.0002]
[1772993422382,0.07638598,66947.0,66940.0,0.0002]
[1772993427625,0.00148,66951.0,66941.0,0.0049166]
[1772993427817,0.00148,66951.0,66941.0,0.00474989]
[1772993428013,0.07489844,66954.0,66941.0,0.00474989]
[1772993428214,0.00148,66953.0,66941.0,0.00474989]
[1772993428663,0.00148,66953.0,66942.0,0.07469152]
[1772993429684,0.07467698,66957.0,66942.0,0.07469152]
[1772993429685,0.00027001,66960.0,66944.0,0.08573945]
[1772993429853,0.00027001,66960.0,66947.0,0.0049166]
[1772993429854,0.00148,66955.0,66947.0,0.0049166]
[1772993430751,0.00148,66956.0,66949.0,0.0049166]
[1772993431135,0.00022001,66961.0,66949.0,0.0049166]
[1772993431136,0.00148,66958.0,66949.0,0.0049166]
[1772993432542,8.14e-05,66964.0,66949.0,0.0049166]
[1772993432746,8.14e-05,66964.0,66953.0,0.0049166]
[1772993433187,0.00557,66971.0,66954.0,0.08666592]
[1772993433383,0.00557,66971.0,66958.0,0.08666592]
[1772993433384,0.00148,66969.0,66958.0,0.08666592]
[1772993433584,0.00153,66970.0,66959.0,0.0049166]
[1772993433868,0.00192766,66970.0,66959.0,0.0049166]
[1772993434201,0.00044766,66970.0,66959.0,0.0049166]
[1772993434347,0.00192766,66970.0,66959.0,0.0049166]
[1772993434749,0.00192766,66970.0,66960.0,0.07958804]
[1772993435501,0.00192766,66970.0,66960.0,0.07467144]
[1772993435677,0.00044766,66970.0,66961.0,0.0049166]
[1772993435879,0.00192766,66970.0,66961.0,0.0049166]
[1772993436611,0.00192766,66970.0,66958.0,0.16133736]
[1772993436612,0.07466141,66969.0,66958.0,0.07467144]
[1772993436911,0.07658907,66970.0,66953.0,0.0746759]
[1772993436912,0.15722535,66966.0,66953.0,0.0746759]
[1772993437122,0.0825606,66962.0,66952.0,0.07468036]
[1772993437297,0.00633475,66961.0,66952.0,0.07468036]
[1772993437514,0.00633475,66961.0,66950.0,0.07468036]
[1772993437515,0.0840406,66961.0,66950.0,0.07468036]
[1772993437716,0.08741535,66960.0,66950.0,0.07468036]
[1772993438089,0.00148,66961.0,66950.0,0.07468036]
[1772993439144,0.07615098,66961.0,66950.0,0.07468036]
[1772993439293,0.07615098,66961.0,66950.0,0.07941096]
[1772993440006,0.00148,66960.0,66950.0,0.07941096]
[1772993440423,0.07466141,66969.0,66951.0,0.0047306]
[1772993440613,0.07466141,66969.0,66953.0,0.0047306]
[1772993440836,0.00148,66968.0,66953.0,0.0047306]
[1772993441235,0.07466364,66968.0,66954.0,0.07940873]
[1772993441440,0.00148,66967.0,66954.0,0.07940873]
[1772993441851,0.00148,66966.0,66954.0,0.07940873]
[1772993442254,0.00148,66966.0,66954.0,0.07467813]
[1772993442458,0.00148,66965.0,66955.0,0.0047306]
[1772993442806,0.07466364,66968.0,66955.0,0.0047306]
[1772993443257,0.00148,66967.0,66955.0,0.0047306]
[1772993443568,0.07466406,66967.0,66957.0,0.0047306]
[1772993443793,0.00148,66966.0,66959.0,0.0047306]
[1772993444118,0.00148,66965.0,66959.0,0.0047306]
[1772993444824,0.07466406,66967.0,66959.0,0.0047306]
[1772993445070,0.00148,66966.0,66959.0,0.0047306]
[1772993445667,0.00148,66966.0,66960.0,0.07467144]
[1772993445837,0.07488317,66968.0,66960.0,0.07519126]
[1772993446052,0.00148,66968.0,66961.0,0.0047306]
[1772993446797,0.00148,66969.0,66961.0,0.0047306]
[1772993447080,0.07510811,66970.0,66961.0,0.0047306]
[1772993447081,0.07510808,66970.0,66961.0,0.0047306]
[1772993447377,0.00148,66969.0,66960.0,0.07467144]
[1772993447899,0.00148,66969.0,66958.0,0.07467144]
[1772993448680,0.00148,66969.0,66958.0,0.07940204]
[1772993448878,0.00148,66969.0,66959.0,0.0047306]
[1772993450569,0.07614151,66969.0,66960.0,0.07467144]
[1772993450769,0.00044766,66970.0,66960.0,0.07940204]
[1772993450770,0.00170001,66970.0,66960.0,0.07940204]
[1772993451582,0.00022001,66970.0,66960.0,0.07945204]
[1772993451783,0.00170001,66970.0,66960.0,0.07945204]
[1772993453903,0.00170001,66970.0,66961.0,0.0047306]
[1772993454705,0.00170001,66970.0,66962.0,0.07466921]
[1772993455907,0.16179023,66969.0,66960.0,0.07472055]
[1772993456116,0.00170001,66970.0,66960.0,0.07472055]
[1772993456322,0.00170001,66970.0,66960.0,0.07945115]
[1772993456521,0.07636042,66970.0,66960.0,0.07945115]
[1772993456726,0.00170001,66970.0,66960.0,0.07945115]
[1772993456927,0.07636044,66970.0,66960.0,0.07945115]
[1772993457147,0.00148,66969.0,66960.0,0.07945115]
[1772993458224,0.00148,66969.0,66960.0,0.07965115]
[1772993460712,0.07614199,66969.0,66960.0,0.07492055]
[1772993461556,0.07466199,66969.0,66960.0,0.07492055]
[1772993461761,0.00148,66968.0,66960.0,0.07492055]
[1772993464232,0.00148,66968.0,66961.0,0.0047306]
[1772993464944,0.00148,66970.0,66961.0,0.0047306]
[1772993465145,0.00159923,66970.0,66961.0,0.0047306]
[1772993465697,0.00159923,66970.0,66962.0,0.07466921]
[1772993465862,0.00159923,66970.0,66963.0,0.00455277]
[1772993466272,0.00181924,66970.0,66963.0,0.00455277]
[1772993466880,0.00033924,66970.0,66963.0,0.00455277]
[1772993467076,0.00181924,66970.0,66963.0,0.00455277]
[1772993467399,0.00033924,66970.0,66963.0,0.00455277]
[1772993467744,0.00181924,66970.0,66963.0,0.00455277]
[1772993467893,0.00033924,66970.0,66964.0,0.07466698]
[1772993468099,0.07648004,66970.0,66964.0,0.07466698]
[1772993468880,0.07648004,66970.0,66963.0,0.07466706]
[1772993469917,0.07648004,66970.0,66962.0,0.07466879]
[1772993470307,0.07648004,66970.0,66961.0,0.07467033]
[1772993470512,0.00481818,66968.0,66954.0,0.07467741]
[1772993470681,0.08640313,66966.0,66954.0,0.07467741]
[1772993470884,0.09122131,66966.0,66954.0,0.07467741]
[1772993471920,0.07466587,66965.0,66953.0,0.07487813]
[1772993472120,0.00148,66964.0,66953.0,0.07487813]
[1772993473087,0.00481818,66962.0,66953.0,0.07487813]
[1772993474163,0.00481818,66962.0,66953.0,0.0002]
[1772993474164,0.07467033,66961.0,66953.0,0.0002]
[1772993475207,0.07485953,66961.0,66953.0,0.0002]
[1772993476365,0.0001892,66961.0,66953.0,0.0002]
[1772993478452,0.0001216,66963.0,66953.0,0.0002]
[1772993478656,0.00148,66962.0,66954.0,0.00485816]
[1772993478822,0.00148,66963.0,66954.0,0.00485816]
[1772993479723,0.07466689,66966.0,66954.0,0.00485816]
[1772993479993,0.00148,66965.0,66954.0,0.00485816]
[1772993480397,0.00148,66964.0,66955.0,0.07953518]
[1772993480760,0.07478325,66969.0,66955.0,0.07953518]
[1772993480961,0.00148,66964.0,66955.0,0.07953518]
[1772993481357,0.07478325,66969.0,66955.0,0.07953518]
[1772993481580,0.00148,66964.0,66955.0,0.07467702]
[1772993481767,0.08640313,66968.0,66955.0,0.07467702]
[1772993481899,0.00148,66964.0,66955.0,0.07467702]
[1772993483162,0.07614795,66964.0,66942.0,0.0002]
[1772993483326,0.08640313,66961.0,66946.0,0.0002816]
[1772993483528,0.00481818,66958.0,66946.0,0.07496846]
[1772993483729,0.00481818,66956.0,66946.0,0.07496846]
[1772993488580,0.07467702,66955.0,66946.0,0.07496846]
[1772993490708,0.07467702,66955.0,66946.0,0.0002816]
[1772993490939,0.0794952,66955.0,66946.0,0.07496842]
[1772993491136,0.07467702,66955.0,66946.0,0.07496842]
[1772993491489,0.07467702,66955.0,66946.0,0.07982658]
[1772993495020,0.07467702,66955.0,66946.0,0.07496842]
[1772993497696,0.07467702,66956.0,66946.0,0.07496842]
[1772993497873,0.07467702,66956.0,66946.0,0.07982658]
[1772993498433,0.07615702,66956.0,66947.0,0.00485816]
[1772993499262,0.07467702,66956.0,66947.0,0.00485816]
[1772993499461,0.07615702,66956.0,66947.0,0.00485816]
[1772993499825,0.00148,66956.0,66948.0,0.07468483]
[1772993500774,5e-05,66960.0,66948.0,0.07468483]
[1772993500974,0.00148,66957.0,66948.0,0.07468483]
[1772993501760,5e-05,66960.0,66948.0,0.07468483]
[1772993502099,0.00148,66957.0,66948.0,0.07468483]
[1772993502545,0.00148,66957.0,66947.0,0.07468554]
[1772993502756,0.00498319,66960.0,66947.0,0.07468554]
[1772993502963,0.00641319,66957.0,66947.0,0.07468554]
[1772993503407,0.00489319,66954.0,66944.0,0.08048917]
[1772993503609,0.00493319,66952.0,66944.0,0.08048917]
[1772993503809,0.07961466,66952.0,66944.0,0.08048917]
[1772993504400,0.00493319,66951.0,66944.0,0.08048917]
[1772993505489,0.07468147,66952.0,66944.0,0.08048917]
[1772993506275,0.07467711,66955.0,66944.0,0.08068917]
[1772993506510,0.07489712,66955.0,66944.0,0.08068917]
[1772993508116,0.00148,66954.0,66944.0,0.08068917]
[1772993509416,0.07467925,66953.0,66944.0,0.08068917]
[1772993512961,0.07452775,66953.0,66944.0,0.08068917]
[1772993527364,0.08705935,66952.0,66940.0,0.00025]
[1772993527566,0.08705935,66948.0,66938.0,0.00015]
[1772993527739,0.00476028,66946.0,66938.0,0.07484598]
[1772993528588,0.00476028,66946.0,66938.0,0.00015]
[1772993528738,0.00476028,66946.0,66939.0,0.00059766]
[1772993529289,0.07468817,66945.0,66939.0,0.00059766]
[1772993532101,0.08705935,66954.0,66939.0,0.00059766]
[1772993532102,0.22332393,66955.0,66941.0,0.00465877]
[1772993532300,0.07489933,66953.0,66943.0,0.00465877]
[1772993532637,0.07489933,66953.0,66939.0,0.07529208]
[1772993532817,0.07489933,66953.0,66940.0,0.00465877]
[1772993533040,0.07489933,66953.0,66941.0,0.00148]
[1772993533313,0.07489933,66953.0,66942.0,0.07469152]
[1772993533695,0.07489933,66953.0,66942.0,0.07935029]
[1772993533863,0.00022001,66953.0,66942.0,0.07469152]
[1772993534068,0.00022001,66953.0,66943.0,0.00465877]
[1772993534707,6.847e-05,66953.0,66943.0,0.00465877]
[1772993535214,0.07467467,66958.0,66946.0,0.00465877]
[1772993535425,0.00148,66954.0,66947.0,0.00465877]
[1772993536642,0.00148,66955.0,66947.0,0.00465877]
[1772993537202,0.00132845,66955.0,66947.0,0.00465877]
[1772993537401,0.0746737,66958.0,66948.0,0.07468483]
[1772993537661,0.00148,66955.0,66948.0,0.07468483]
[1772993538018,0.00148,66957.0,66948.0,0.0793436]
[1772993540002,0.00027001,66960.0,66949.0,0.00468727]
[1772993540231,0.00027001,66960.0,66948.0,0.07468483]
[1772993540232,0.00148,66959.0,66951.0,0.00468727]
[1772993540449,0.00022001,66957.0,66951.0,0.00468727]
[1772993542046,0.00022001,66957.0,66952.0,0.07468036]
[1772993542244,0.00027001,66960.0,66952.0,0.07468036]
[1772993542447,0.00027001,66960.0,66953.0,0.00468727]
[1772993544055,0.00027001,66960.0,66954.0,0.07467813]
[1772993544267,0.00027001,66960.0,66955.0,0.00468727]
[1772993544856,0.00027001,66960.0,66956.0,0.00468727]
[1772993545486,0.00027001,66960.0,66954.0,0.07467813]
[1772993545487,0.07494153,66960.0,66954.0,0.07467813]
[1772993546232,0.00027001,66960.0,66953.0,0.07467838]
[1772993546409,0.00027001,66960.0,66954.0,0.00468727]
[1772993546584,0.00022001,66962.0,66954.0,0.00468727]
[1772993547280,0.07488924,66962.0,66954.0,0.00468727]
[1772993548223,0.00022001,66960.0,66955.0,0.07467702]
[1772993548535,0.06010925,66962.0,66956.0,0.00468727]
[1772993550237,0.06010925,66962.0,66956.0,0.07936276]
[1772993555306,0.06032926,66962.0,66956.0,0.07936276]
[1772993556241,0.06032926,66962.0,66955.0,0.07467702]
[1772993557339,0.06032926,66962.0,66951.0,0.07468148]
[1772993566100,0.06032926,66962.0,66951.0,0.07483518]
[1772993567331,0.06032926,66962.0,66951.0,0.07965963]
[1772993570585,0.06017766,66962.0,66951.0,0.07965963]
[1772993570782,0.06017766,66962.0,66951.0,0.07985963]
[1772993571132,0.0600261,66962.0,66951.0,0.07985963]
[1772993571965,0.00015184,66961.0,66951.0,0.07985963]
[1772993581650,0.00023,66968.0,66952.0,0.00482445]
[1772993581812,0.00022001,66969.0,66953.0,0.00482445]
[1772993582037,0.00022001,66969.0,66956.0,0.08410162]
[1772993582282,0.00022001,66969.0,66959.0,0.00482445]
[1772993582738,0.08192926,66971.0,66958.0,0.08558162]
[1772993582739,0.00579001,66971.0,66960.0,0.00482445]
[1772993583091,0.00727001,66971.0,66962.0,0.00482445]
[1772993583705,0.00579001,66971.0,66964.0,0.07466698]
[1772993583857,0.00038924,66970.0,66964.0,0.07466698]
[1772993584204,1e-08,66972.0,66965.0,0.00482445]
[1772993584363,0.00022001,66974.0,66965.0,0.09021338]
[1772993584579,0.00022001,66974.0,66966.0,0.00482445]
[1772993585820,0.00022001,66974.0,66967.0,0.07466364]
[1772993589169,0.00022001,66978.0,66968.0,0.00471374]
[1772993589302,0.00022001,66978.0,66969.0,0.00471374]
[1772993589497,0.00022001,66978.0,66967.0,0.07466364]
[1772993589498,1e-08,66978.0,66970.0,0.08896977]
[1772993589733,1e-08,66978.0,66972.0,0.00471374]
[1772993589890,1e-08,66978.0,66974.0,0.00471374]
[1772993590907,1e-08,66978.0,66975.0,0.08896977]
[1772993591111,1e-08,66978.0,66973.0,0.07465695]
[1772993591653,1e-08,66978.0,66974.0,0.00471374]
[1772993591997,1e-08,66978.0,66975.0,0.07465472]
[1772993592387,1e-08,66978.0,66975.0,0.07936846]
[1772993592995,1e-08,66978.0,66975.0,0.07465472]
[1772993593603,1e-08,66981.0,66975.0,0.07936846]
[1772993594283,1e-08,66981.0,66975.0,0.07465472]
[1772993596557,0.00461872,66980.0,66970.0,5e-05]
[1772993596773,0.00461872,66978.0,66967.0,0.07614257]
[1772993597293,0.00461872,66978.0,66967.0,0.07466257]
[1772993598276,0.07465249,66977.0,66966.0,0.07466364]
[1772993598485,0.00461872,66976.0,66966.0,0.07466364]
[1772993598938,0.0044573,66976.0,66966.0,0.07466364]
[1772993600435,0.16551073,66977.0,66965.0,4.152e-05]
[1772993600436,0.00461872,66974.0,66965.0,4.152e-05]
[1772993600643,0.00446706,66974.0,66965.0,4.152e-05]
[1772993601326,0.09085824,66973.0,66960.0,0.07472144]
[1772993601530,0.00461872,66970.0,66962.0,0.00039766]
[1772993601733,0.00461872,66968.0,66960.0,0.07467144]
[1772993601905,0.00501606,66968.0,66960.0,0.07467144]
[1772993602508,0.00039734,66968.0,66960.0,0.08896977]
[1772993602834,0.00039734,66968.0,66960.0,0.09368351]
[1772993603040,0.00039734,66968.0,66959.0,0.0001209]
[1772993604097,0.00024568,66968.0,66959.0,0.0001209]
[1772993604473,0.00024568,66968.0,66960.0,0.0002]
[1772993606266,9.403e-05,66968.0,66960.0,0.0002]
[1772993607580,0.00461872,66967.0,66960.0,0.0002]
[1772993607923,0.00461872,66967.0,66959.0,0.0001209]
[1772993609315,0.00461872,66966.0,66959.0,0.0001209]
[1772993609512,0.00461872,66966.0,66953.0,0.0003209]
[1772993609513,0.00461872,66964.0,66953.0,0.0003209]
[1772993609754,0.00461872,66964.0,66953.0,0.07499964]
[1772993609973,0.00461872,66964.0,66953.0,0.0003209]
[1772993610122,0.00461872,66964.0,66953.0,0.0750001]
[1772993610799,0.00461872,66962.0,66953.0,0.0750001]
[1772993611028,0.00446705,66962.0,66953.0,0.0750001]
[1772993611710,0.00431541,66962.0,66953.0,0.0750001]
[1772993612262,0.00416374,66962.0,66953.0,0.0750001]
[1772993613104,0.07467033,66961.0,66953.0,0.0003209]
[1772993613304,0.07467033,66961.0,66953.0,0.07499993]
[1772993613866,0.07451865,66961.0,66953.0,0.07499993]
[1772993618672,0.074367,66961.0,66953.0,0.07499993]
[1772993619173,0.07893104,66961.0,66953.0,0.0003209]
[1772993619720,0.07893104,66961.0,66953.0,0.07499922]
[1772993622271,0.07889104,66961.0,66953.0,0.07499922]
[1772993626285,0.07911105,66961.0,66953.0,0.07499922]
[1772993635582,0.07895937,66961.0,66953.0,0.07499922]
[1772993635779,0.00148,66960.0,66946.0,0.0003209]
[1772993635967,0.00456404,66959.0,66946.0,0.07648787]
[1772993636375,0.00456404,66959.0,66946.0,0.07500787]
[1772993637193,0.07467367,66958.0,66946.0,0.07500787]
[1772993637387,0.00456404,66957.0,66946.0,0.07500787]
[1772993638062,0.00441235,66957.0,66946.0,0.07500787]
[1772993639291,0.00441235,66957.0,66941.0,0.00016]
[1772993639292,0.0746759,66956.0,66941.0,0.00016]
[1772993639592,0.00456404,66955.0,66941.0,0.00016]
[1772993639725,0.00456404,66953.0,66941.0,0.00016]
[1772993639936,0.00456404,66953.0,66940.0,0.07474278]
[1772993639937,0.00456404,66950.0,66937.0,0.07489615]
[1772993640575,0.00461404,66950.0,66937.0,0.07489615]
[1772993641343,0.07468371,66949.0,66938.0,0.09051812]
[1772993641547,0.00148,66948.0,66938.0,0.09051812]
[1772993641747,0.07468371,66949.0,66940.0,0.09051812]
[1772993641947,0.00148,66948.0,66940.0,0.09051812]
[1772993642742,0.07479698,66956.0,66940.0,0.09051812]
[1772993642980,0.07479698,66956.0,66937.0,0.07489615]
[1772993642981,0.07467813,66954.0,66944.0,0.09267884]
[1772993643251,0.0001209,66956.0,66945.0,0.17199353]
[1772993643453,0.00148,66955.0,66945.0,0.17199353]
[1772993643704,0.00148,66954.0,66945.0,0.17199353]
[1772993644910,0.0001209,66956.0,66945.0,0.17199353]
[1772993645135,0.00148,66954.0,66945.0,0.17199353]
[1772993645336,0.07467925,66953.0,66945.0,0.09730578]
[1772993646595,0.07467925,66953.0,66945.0,0.1719939]
[1772993646943,0.07615925,66954.0,66947.0,0.00491033]
[1772993647082,0.07615925,66954.0,66948.0,0.08814479]
[1772993647762,0.07467925,66954.0,66948.0,0.08814479]
[1772993648944,0.07615754,66955.0,66948.0,0.16282934]
[1772993649167,0.07615754,66955.0,66946.0,0.16283075]
[1772993650124,0.07615754,66955.0,66947.0,0.08814479]
[1772993650329,0.07630754,66955.0,66947.0,0.08814479]
[1772993650911,0.07482716,66955.0,66947.0,0.08814479]
[1772993651719,0.07482716,66955.0,66948.0,0.07468483]
[1772993652667,0.07482716,66955.0,66946.0,0.07468596]
[1772993653883,0.07482716,66955.0,66945.0,0.07488812]
[1772993655191,0.07630716,66955.0,66945.0,0.07488812]
[1772993656776,0.07630716,66955.0,66944.0,0.07468929]
[1772993656777,0.00469855,66954.0,66944.0,0.07468929]
[1772993657464,0.00469855,66954.0,66941.0,0.07469263]
[1772993658693,0.08623369,66952.0,66940.0,0.07474349]
[1772993658904,0.00469855,66951.0,66940.0,0.07474349]
[1772993659883,0.00465855,66951.0,66940.0,0.07474349]
[1772993660498,0.00465855,66951.0,66940.0,5e-05]
[1772993660675,0.00469855,66949.0,66940.0,5e-05]
[1772993660895,0.07468259,66950.0,66938.0,0.0002]
[1772993660896,0.00469855,66947.0,66938.0,0.0002]
[1772993661084,0.00469855,66947.0,66937.0,0.0002]
[1772993661285,0.00469855,66947.0,66935.0,0.00016]
[1772993662087,0.00509546,66947.0,66935.0,0.00016]
[1772993662863,0.00469855,66945.0,66934.0,1e-08]
[1772993663066,0.00469855,66942.0,66933.0,1e-08]
[1772993663234,0.00469855,66940.0,66933.0,1e-08]
[1772993664023,0.00469855,66940.0,66933.0,0.00012871]
[1772993664984,0.00469855,66936.0,66922.0,0.00015]
[1772993665125,0.00469855,66934.0,66922.0,0.00015]
[1772993665333,0.08623369,66933.0,66922.0,0.00015]
[1772993665543,0.00469855,66932.0,66922.0,0.00015]
[1772993665858,0.00469855,66932.0,66922.0,1e-08]
[1772993667089,0.07470379,66931.0,66922.0,1e-08]
[1772993667255,0.00469855,66930.0,66922.0,1e-08]
[1772993667463,0.00469855,66928.0,66922.0,0.00020001]
[1772993667873,0.00469855,66928.0,66901.0,0.12977805]
[1772993668064,0.00469855,66928.0,66896.0,1e-08]
[1772993668065,0.00469855,66909.0,66896.0,1e-08]
[1772993668480,0.00469855,66909.0,66897.0,0.07474176]
[1772993668700,0.00469855,66909.0,66897.0,0.13649761]
[1772993668896,0.00469855,66909.0,66895.0,0.00148]
[1772993669108,0.07473059,66907.0,66895.0,0.00148]
[1772993669308,0.00469855,66906.0,66895.0,0.00159923]
[1772993670273,0.00469855,66906.0,66890.0,0.00597]
[1772993670479,0.07473059,66907.0,66891.0,0.00148]
[1772993670480,0.08623369,66904.0,66891.0,0.00148]
[1772993670719,0.08623369,66903.0,66891.0,0.00148]
[1772993670895,0.00469855,66902.0,66891.0,0.00148]
[1772993671101,0.00148,66905.0,66894.0,0.00489905]
[1772993671102,0.07473394,66904.0,66894.0,0.00489905]
[1772993671303,0.07473394,66904.0,66895.0,0.08814479]
[1772993672726,0.01507207,66907.0,66893.0,0.00489905]
[1772993673044,0.07477755,66910.0,66898.0,0.09349936]
[1772993673217,0.07477755,66910.0,66901.0,0.09349936]
[1772993673218,5e-05,66910.0,66901.0,0.09349936]
[1772993675354,5e-05,66910.0,66901.0,0.09369936]
[1772993675555,5e-05,66910.0,66902.0,0.09349936]
[1772993675751,5e-05,66910.0,66902.0,0.07199982]
[1772993675981,5e-05,66910.0,66901.0,0.07493685]
[1772993676152,5e-05,66910.0,66902.0,0.09349936]
[1772993676513,5e-05,66910.0,66902.0,0.09839841]
[1772993677610,5e-05,66910.0,66902.0,0.17313421]
[1772993678242,5e-05,66910.0,66903.0,0.09349936]
[1772993680329,5e-05,66910.0,66901.0,0.0002]
[1772993681158,5e-05,66910.0,66901.0,0.07493711]
[1772993681575,5e-05,66910.0,66901.0,0.0002]
[1772993681758,0.00494184,66910.0,66901.0,0.0002]
[1772993682138,0.07472836,66909.0,66901.0,0.0002]
[1772993682541,0.00489184,66908.0,66901.0,0.0002]
[1772993683603,0.00485184,66908.0,66901.0,0.0002]
[1772993683820,0.00485184,66908.0,66905.0,0.00015]
[1772993684020,0.00485184,66908.0,66905.0,0.00163]
[1772993686106,0.07473059,66907.0,66901.0,0.07493699]
[1772993686444,0.07473059,66907.0,66905.0,0.00148]
[1772993687552,0.06258174,66909.0,66905.0,0.00148]
[1772993687748,0.07472947,66908.0,66905.0,0.00148]
[1772993689304,0.07962131,66908.0,66905.0,0.00148]
[1772993690677,0.07472947,66908.0,66905.0,0.00148]
[1772993690879,0.06258174,66909.0,66905.0,0.00148]
[1772993691088,0.07499816,66910.0,66905.0,0.00148]
[1772993691089,0.07499816,66910.0,66905.0,0.09497936]
[1772993691428,0.07499816,66910.0,66905.0,0.07675136]
[1772993692614,0.00027001,66910.0,66906.0,0.0837079]
[1772993692802,0.07472285,66914.0,66906.0,0.08859063]
[1772993693002,0.07472389,66913.0,66906.0,0.08859063]
[1772993693409,0.07472054,66916.0,66906.0,0.0837079]
[1772993693585,0.07472054,66916.0,66907.0,0.00488273]
[1772993694385,0.14798954,66918.0,66906.0,0.00488273]
[1772993694608,0.14798954,66918.0,66907.0,0.07473059]
[1772993694609,0.07471864,66918.0,66907.0,0.07473059]
[1772993694811,0.07486191,66919.0,66907.0,0.07473059]
[1772993695558,0.0001436,66919.0,66908.0,0.00488273]
[1772993695767,0.04835262,66919.0,66909.0,0.09349936]
[1772993695984,0.04835262,66919.0,66910.0,0.00488273]
[1772993696185,0.0001436,66919.0,66911.0,0.00148]
[1772993696805,0.00022001,66917.0,66912.0,0.07472501]
[1772993697007,0.00022001,66917.0,66913.0,0.00148]